Cogmind - Beta 12 @@@ ROGUE MODE // 2023.07.28 @ 22:13:03 Player: TheGreatBorealis Result: Destroyed by Enhanced Grunt with Neutron Cannon Performance ------------- Evolutions (3) 1500 Regions Visited (11) 2200 Robots Destroyed (101) 505 Value Destroyed (3324) 3324 Prototype IDs (18) 360 Alien Tech Used (0) 0 Bonus (804) 804 TOTAL SCORE: 8693 Bonus ------- High Alert Combat Kills 42 Follower Combat Kills 164 Aligned with FarCom 300 Met Data Miner 300 Friendly Fire -2 Cogmind --------- Core Integrity 0/700 Matter 267/300 Energy 100/100 System Corruption 4% Temperature Cool (0) Movement Core (400) Ox7 Location -7/Data Miner Parts ------- > --- POWER (1) -------- (None) > --- PROPULSION (4) --- (None) > --- UTILITY (6) ------ Large Storage Unit Improved Signal Interpreter Improved Terrain Scan Processor > --- WEAPON (2) ------- Longsword +1 > --- INVENTORY (15) --- Improved Deuterium Engine Cryofiber Web Improved Heat Sink Cooling System Large Storage Unit Compact Battery (200) Advanced Terrain Scan Processor Weapon Cycler Layered Light Armor Plating Layered Light Armor Plating Shield Generator Plasma Cannon Plasma Cannon Chainsword Peak State ------------ > --- POWER ------------ Heavy Ion Engine > --- PROPULSION ------- Improved Aluminum Leg Carbon-fiber Leg VSS Leg Flexi-carbon Leg > --- UTILITY ---------- Improved Heat Sink Large Storage Unit Improved Signal Interpreter Improved Terrain Scanner Improved Terrain Scan Processor Targeting Computer > --- WEAPON ----------- Plasma Cannon Longsword +1 > --- INVENTORY -------- Deuterium Engine Deuterium Engine Aluminum Leg Improved Aluminum Leg Improved Aluminum Leg Armored Wheel Improved Heat Sink Large Storage Unit Advanced Terrain Scan Processor Layered Light Armor Plating Layered Light Armor Plating Particle Gun Plasma Cannon Rocket Launcher Katana [Rating: 46] Favorites ----------- Power Deuterium Engine Engine Deuterium Engine Power Core Light Nuclear Core Propulsion Aluminum Leg Treads Light Treads Leg Aluminum Leg Wheel Wheel Utility Large Storage Unit Device Improved Heat Sink Storage Large Storage Unit Processor Improved Terrain Scan Processor Hackware Hacking Suite Protection Light Armor Plating Weapon Longsword +1 Energy Gun Particle Gun Energy Cannon Plasma Cannon Launcher Rocket Launcher Impact Weapon Hammer Slashing Weapon Longsword +1 Piercing Weapon Spear Build | -11 -10 -10 -9 -9 -9 -8 -8 -7 -7 -7 -7 ------- Run | Jun Mat Min Mat Min Exi Min Mat Fac Low Low Dat Slots Evolved 6 | . . . 2 . . . 2 2 . . . Power . | . . . . . . . . . . . . Propulsion 2 | . . . 1 . . . 1 . . . . Utility 4 | . . . 1 . . . 1 2 . . . Weapon . | . . . . . . . . . . . . Parts Attached 156 | 1 9 14 16 16 1 4 61 20 7 2 5 Power 15 | . 2 4 1 3 . . 4 1 . . . Engine 14 | . 2 3 1 3 . . 4 1 . . . Core 1 | . . 1 . . . . . . . . . Reactor . | . . . . . . . . . . . . Propulsion 48 | . 4 3 3 7 . 3 19 5 3 . 1 Treads 2 | . . . 2 . . . . . . . . Leg 44 | . 4 3 . 7 . 3 19 5 3 . . Wheel 2 | . . . 1 . . . . . . . 1 Hover . | . . . . . . . . . . . . Flight . | . . . . . . . . . . . . Utility 27 | 1 1 . 3 3 . . 13 4 . 2 . Device 15 | 1 1 . 1 2 . . 7 2 . 1 . Storage 2 | . . . . 1 . . 1 . . . . Processor 3 | . . . . . . . 2 1 . . . Hackware 1 | . . . 1 . . . . . . . . Protection 6 | . . . 1 . . . 3 1 . 1 . Artifact . | . . . . . . . . . . . . Weapon 66 | . 2 7 9 3 1 1 25 10 4 . 4 Energy Gun 22 | . 1 5 5 1 . 1 8 1 . . . Energy Cannon 14 | . . . . 1 . . 7 3 2 . 1 Ballistic Gun . | . . . . . . . . . . . . Ballistic Cannon . | . . . . . . . . . . . . Launcher 10 | . . 2 1 1 . . 3 1 1 . 1 Special Weapon . | . . . . . . . . . . . . Impact Weapon 4 | . 1 . 3 . . . . . . . . Slashing Weapon 15 | . . . . . 1 . 7 4 1 . 2 Piercing Weapon 1 | . . . . . . . . 1 . . . Special Melee Weapon . | . . . . . . . . . . . . Unidentified Prototypes 2 | . . . . . 1 . 1 . . . . Parts Lost 40 | . 2 2 9 1 . . 11 1 3 1 10 Power 2 | . . . 1 . . . . . . . 1 Propulsion 23 | . 1 2 5 . . . 6 1 3 . 5 Utility 14 | . 1 . 3 1 . . 5 . . 1 3 Weapon 1 | . . . . . . . . . . . 1 Highest Loss Streak 10 | . 1 2 4 1 . . 3 1 2 1 10 To Critical Strikes 1 | . . . . . . . . . 1 . . Average Slot Usage (%) 96 | . 96 99 70 87 100 99 98 100 99 100 94 Engine 9 | . 14 10 5 10 11 11 8 7 7 7 7 Leg 30 | . 27 27 7 30 33 32 35 30 29 30 24 Device 14 | . 10 14 14 10 22 22 11 14 15 13 13 Storage 9 | . 14 14 9 9 11 11 9 7 7 7 7 Processor 10 | . . . . . . . 13 23 23 23 23 Protection 1 | . . . . 7 . . . . . 1 . Energy Gun 9 | . 26 27 15 9 5 7 10 . . . . Energy Cannon 5 | . . . . 3 11 11 2 7 9 15 12 Slashing Weapon 2 | . . . . . 5 3 4 5 4 . 1 Naked Turns 21 | . . . 21 . . . . . . . . Heaviest Build 51 | 13 15 17 19 35 35 35 44 51 45 48 45 Greatest Support 61 | 20 20 20 40 33 33 33 52 61 48 48 48 Greatest Overweight (x) 3 | . 1 1 3 2 1 1 1 . 1 . 2 Average Overweight (x) . | . . . . . 1 1 . . . . . Largest Inventory Capacity 15 | 8 8 8 8 15 15 15 15 15 15 15 15 Average Capacity 13 | 8 8 8 7 13 15 15 15 15 15 15 15 Most Carried 15 | 7 8 8 8 15 15 15 15 15 15 15 15 Average Carried 12 | 6 7 7 7 10 14 14 14 14 12 13 14 Final Capacity 15 | 8 8 8 5 15 15 15 15 15 15 15 15 Final Carried 15 | 6 7 8 4 15 15 15 15 15 12 15 14 Class Distribution -------------------- 40% | Scavenger-Mutant 37% | Mutant 15% | Scavenger-Assassin 3% | Scavenger-Skirmisher Dominant Class ---------------- Mutant | -10/Materials Scavenger-Mutant | -10/Mines Mutant | -9/Materials Mutant | -9/Mines Mutant | -9/Exiles Mutant | -8/Mines Scavenger-Mutant | -8/Materials Scavenger-Assassin | -7/Factory Scavenger-Mutant | -7/Lower Caves Mutant | -7/Lower Caves Mutant | -7/Data Miner Resources | -11 -10 -10 -9 -9 -9 -8 -8 -7 -7 -7 -7 ----------- Run | Jun Mat Min Mat Min Exi Min Mat Fac Low Low Dat Matter Collected 2127 | 210 125 161 149 271 . 156 525 160 139 231 . Remotely . | . . . . . . . . . . . . Salvage Created 3621 | 81 265 395 411 274 . 138 1436 369 142 110 . Parts 171 | 2 7 22 19 15 . 5 72 17 7 5 . Haulers Intercepted 3 | . . . 2 . . . 1 . . . . Recyclers Shooed 1 | . . . . . . . 1 . . . . Parts Field Recycled . | . . . . . . . . . . . . Retrieved Matter . | . . . . . . . . . . . . Parts Self-Destructed 20 | . . . . . . . . . 9 11 . Prevented . | . . . . . . . . . . . . Kills | -11 -10 -10 -9 -9 -9 -8 -8 -7 -7 -7 -7 ------- Run | Jun Mat Min Mat Min Exi Min Mat Fac Low Low Dat Combat Hostiles Destroyed 84 | . 6 14 9 8 . 3 28 7 7 2 . Melee 7 | . . . 1 . . . 6 . . . . Guns 35 | . 5 9 3 4 . 1 13 . . . . Cannons 17 | . . . . 1 . 2 3 5 4 2 . AOE 19 | . . 5 2 3 . . 4 2 3 . . Classes Destroyed 16 | 2 1 2 3 1 . 1 4 2 . . . Worker 3 | . . 1 1 . . . 1 . . . . Builder 2 | . . . . . . . 2 . . . . Tunneler 5 | 1 1 1 . . . . 2 . . . . Hauler 3 | . . . 2 . . . 1 . . . . Recycler 2 | 1 . . . . . . 1 . . . . Mechanic 1 | . . . . . . . 1 . . . . Operator 1 | . . . 1 . . . . . . . . Watcher 1 | . . . . . . . 1 . . . . Swarmer 20 | . . 6 3 . . . 4 . 7 . . Grunt 47 | . 6 8 4 7 . 2 17 3 . . . Duelist 2 | . . . . . . 1 1 . . . . Sentry 7 | . . . 2 . . . 5 . . . . Specialist 2 | . . . . . . . . 2 . . . Hunter 3 | . . . . . . . 1 . . 2 . Programmer 2 | . . . . . . . . 2 . . . Assembled 1 | . . . . 1 . . . . . . . Best Kill Streak 7 | 1 2 4 5 3 . 3 7 4 4 1 . Combat Bots Only 5 | . 2 3 4 3 . 3 5 4 4 1 . Max Kills in Single Turn 3 | 1 1 2 3 2 . 1 2 2 3 1 . Gunslinging . | . . . . . . . . . . . . Exploded 3 | . . 2 2 2 . . 2 2 3 . . Melee 1 | . . . 1 . . . 1 . . . . Uniques/NPCs Destroyed . | . . . . . . . . . . . . Combat | -11 -10 -10 -9 -9 -9 -8 -8 -7 -7 -7 -7 -------- Run | Jun Mat Min Mat Min Exi Min Mat Fac Low Low Dat Damage Taken 6684 | . 445 459 1041 213 . 209 1793 782 253 148 1341 Core 1390 | . 77 116 127 14 . 52 303 130 30 13 528 Absorbed by Shields . | . . . . . . . . . . . . Core Remaining (%) 54 | 100 . 22 . . . 51 44 . . . . Volleys Fired 221 | 11 21 32 30 18 . 8 68 19 5 5 4 Largest 2 | 2 2 2 2 2 . 2 2 2 2 2 2 Hottest 160 | 100 100 130 130 124 . 124 124 160 160 160 160 Shots Fired 401 | 22 42 61 53 19 . 16 127 34 11 10 6 Gun 292 | 22 42 56 52 14 . 8 96 2 . . . Cannon 87 | . . . . 2 . 8 24 31 9 10 3 Launcher 22 | . . 5 1 3 . . 7 1 2 . 3 Special . | . . . . . . . . . . . . Kinetic . | . . . . . . . . . . . . Thermal 379 | 22 42 56 52 16 . 16 120 33 9 10 3 Explosive 22 | . . 5 1 3 . . 7 1 2 . 3 Electromagnetic . | . . . . . . . . . . . . Robot Hit Streak 21 | 5 13 12 21 4 . 10 20 15 4 7 12 Robot Miss Streak 4 | 4 2 4 2 2 . 1 2 2 1 2 1 Penetration Max . | . . . . . . . . . . . . Secondary Targets 4 | . 1 2 1 . . . . . . . . Max Gunslinging Chain 1 | . 1 1 1 . . . . . . . . Shots Hit Robots 324 | 11 30 41 66 9 . 13 110 25 7 7 5 Core Hits 166 | 3 13 25 16 13 . 6 59 12 8 3 8 Critical Kills 1 | . . . 1 . . . . . . . . Critical Parts Destroyed 1 | . . . 1 . . . . . . . . Critical Strikes 18 | 1 2 4 4 1 . 1 5 . . . . Burn 16 | 1 2 4 2 1 . 1 5 . . . . Smash 2 | . . . 2 . . . . . . . . Melee Attacks 138 | . 2 . 30 . . . 47 44 10 . 5 Impact 32 | . 2 . 30 . . . . . . . . Slashing 97 | . . . . . . . 47 35 10 . 5 Piercing 9 | . . . . . . . . 9 . . . Sneak Attacks 8 | . 1 . 1 . . . 5 . 1 . . Combat Hostiles 1 | . . . . . . . . . 1 . . Follow-up Attacks . | . . . . . . . . . . . . Damage Inflicted 8233 | 136 430 890 1282 290 . 265 3233 668 439 181 419 Guns 3265 | 136 346 595 630 131 . 120 1292 15 . . . Cannons 1460 | . . . . 21 . 142 361 544 152 181 59 Explosions 1935 | . . 295 141 138 . . 708 66 227 . 360 Melee 1570 | . 84 . 511 . . . 872 43 60 . . Ramming 3 | . . . . . . 3 . . . . . Kinetic . | . . . . . . . . . . . . Thermal 4725 | 136 346 595 630 152 . 262 1653 559 152 181 59 Explosive 1935 | . . 295 141 138 . . 708 66 227 . 360 Electromagnetic . | . . . . . . . . . . . . Impact 595 | . 84 . 511 . . . . . . . . Slashing 975 | . . . . . . . 872 43 60 . . Piercing . | . . . . . . . . . . . . Highest Corruption 10 | . . . 10 10 10 10 5 3 3 3 4 Average Corruption 6 | . . . 9 10 10 10 5 2 3 3 3 Corruption Purged . | . . . . . . . . . . . . Corruption Blocked . | . . . . . . . . . . . . Effects 136 | . . . 4 30 19 30 15 17 11 7 3 Message Errors 32 | . . . 1 10 3 4 5 4 2 3 . Matter Fused 42 | . . . 1 7 8 11 2 6 4 3 . Heat Flow Errors 16 | . . . 1 4 1 5 2 1 . 1 1 Energy Discharges 13 | . . . . 2 2 4 3 1 . . 1 Parts Rejected 1 | . . . . 1 . . . . . . . Parts Fused 1 | . . . . . . . . . 1 . . Data Loss (minor) 21 | . . . . 4 5 4 2 4 2 . . Data Loss (major) 3 | . . . . 1 . 1 . . 1 . . Misfires 2 | . . . . . . . . . 1 . 1 Alerts 3 | . . . . . . 1 1 1 . . . Misdirections 1 | . . . 1 . . . . . . . . Weapon Failures 1 | . . . . 1 . . . . . . . Overload Shots . | . . . . . . . . . . . . Overflow Damage 140 | . 18 1 29 . . . 72 8 12 . . Projectiles . | . . . . . . . . . . . . Explosions 13 | . . 1 . . . . 10 . 2 . . Melee 127 | . 18 . 29 . . . 62 8 10 . . Knockbacks 1 | . 1 . . . . . . . . . . Impact 1 | . 1 . . . . . . . . . . Kinetic . | . . . . . . . . . . . . Secondary . | . . . . . . . . . . . . Self-Inflicted Damage 105 | . . 18 . . . . . . . . 87 Shots 4 | . . 1 . . . . . . . . 3 Rammed . | . . . . . . . . . . . . Targets Rammed 2 | . . . . . . 1 1 . . . . Kicked 2 | . . . . . . 1 1 . . . . Crushed . | . . . . . . . . . . . . Highest Temperature 366 | 354 366 219 157 206 76 155 254 60 99 237 93 Average Temperature 88 | 178 157 75 53 83 48 74 50 14 48 74 39 Received Heat Transfer 2046 | . 282 228 372 117 . 27 801 198 . 9 12 Effects 6 | . 6 . . . . . . . . . . Shutdowns 2 | . 2 . . . . . . . . . . Interference 2 | . 2 . . . . . . . . . . Matter Decay 1 | . 1 . . . . . . . . . . Damage (minor) 1 | . 1 . . . . . . . . . . Siege Activations . | . . . . . . . . . . . . Robots Corrupted . | . . . . . . . . . . . . Combat Hostiles . | . . . . . . . . . . . . Parts Fried 4 | . 2 . 2 . . . . . . . . Impact Corruptions 3 | . 1 . 2 . . . . . . . . Robots Melted 4 | . 1 . 1 . . . 2 . . . . Combat Hostiles 4 | . 1 . 1 . . . 2 . . . . Parts Melted 27 | 1 6 3 2 . . . 10 3 1 1 . Heat Transferred 11624 | 481 1184 1813 1776 397 . 592 3717 864 300 350 150 Parts Sabotaged . | . . . . . . . . . . . . Parts Stolen . | . . . . . . . . . . . . Parts Stripped . | . . . . . . . . . . . . Power Chain Reactions . | . . . . . . . . . . . . Missiles Intercepted . | . . . . . . . . . . . . Alert | -11 -10 -10 -9 -9 -9 -8 -8 -7 -7 -7 -7 ------- Run | Jun Mat Min Mat Min Exi Min Mat Fac Low Low Dat Peak Influence 464 | 10 120 258 441 261 . 70 464 302 . . . Initial 192 | . 6 21 27 51 . . . 192 . . . Average 161 | 5 48 153 239 139 . 16 259 138 . . . Maximum Alert Level 2 | . . 1 2 1 . . 2 1 . . . Low Security (%) 61 | 100 100 64 37 68 . 100 23 77 . . . Level 1 34 | . . 35 51 31 . . 64 22 . . . Level 2 3 | . . . 11 . . . 11 . . . . Level 3 . | . . . . . . . . . . . . Level 4 . | . . . . . . . . . . . . Level 5 . | . . . . . . . . . . . . High Security . | . . . . . . . . . . . . Max Security . | . . . . . . . . . . . . Squads Dispatched 23 | . 1 . 1 1 . . 5 15 . . . Investigation 2 | . . . 1 . . . 1 . . . . Extermination 2 | . . . . . . . . 2 . . . Reinforcement 11 | . 1 . . . . . 3 7 . . . Assault 1 | . . . . 1 . . . . . . . Garrison 7 | . . . . . . . 1 6 . . . Intercept . | . . . . . . . . . . . . Searches Triggered . | . . . . . . . . . . . . Construction Impeded 1 | . . . . . . . 1 . . . . Haulers Reinforced . | . . . . . . . . . . . . Active Scanning Responses . | . . . . . . . . . . . . Cargo Convoy Interrupts . | . . . . . . . . . . . . Stealth | -11 -10 -10 -9 -9 -9 -8 -8 -7 -7 -7 -7 --------- Run | Jun Mat Min Mat Min Exi Min Mat Fac Low Low Dat Distress Signals 3 | . . . 2 . . . 1 . . . . Communications Jammed . | . . . . . . . . . . . . Distress Signals . | . . . . . . . . . . . . Times Spotted 138 | . 12 14 25 13 . 3 39 18 7 3 4 Peak Tracking Total 9 | . 4 3 9 5 . 3 6 6 4 3 4 Tactical Retreats 9 | . . . 3 . . . 3 3 . . . Traps | -11 -10 -10 -9 -9 -9 -8 -8 -7 -7 -7 -7 ------- Run | Jun Mat Min Mat Min Exi Min Mat Fac Low Low Dat Traps Triggered 3 | . . . . . . . 2 1 . . . Indirectly . | . . . . . . . . . . . . Trap Hack Attempts . | . . . . . . . . . . . . Triggered . | . . . . . . . . . . . . Disarmed . | . . . . . . . . . . . . Reprogrammed . | . . . . . . . . . . . . Reused . | . . . . . . . . . . . . Traps Extracted . | . . . . . . . . . . . . Installed . | . . . . . . . . . . . . Triggered . | . . . . . . . . . . . . Machines | -11 -10 -10 -9 -9 -9 -8 -8 -7 -7 -7 -7 ---------- Run | Jun Mat Min Mat Min Exi Min Mat Fac Low Low Dat Machines Disabled 7 | . . . 2 1 . . 3 . . . 1 Max in Single Turn 1 | . . . 1 . . . 1 . . . 1 Machines Repaired . | . . . . . . . . . . . . Machines Sabotaged . | . . . . . . . . . . . . Overloaded Fab Kills . | . . . . . . . . . . . . Hacking | -11 -10 -10 -9 -9 -9 -8 -8 -7 -7 -7 -7 --------- Run | Jun Mat Min Mat Min Exi Min Mat Fac Low Low Dat Machines Accessed 24 | . 4 . 4 . 1 . 6 5 . . 4 Terminals 15 | . 2 . 4 . . . 6 3 . . . Fabricators . | . . . . . . . . . . . . Repair Stations . | . . . . . . . . . . . . Recycling Units 3 | . 2 . . . . . . 1 . . . Scanalyzers 1 | . . . . . . . . 1 . . . Garrison Access . | . . . . . . . . . . . . Total Hacks 68 | . 5 . 11 . 1 . 12 9 . . 30 Successful 43 | . 2 . 2 . 1 . 4 4 . . 30 Failed 25 | . 3 . 9 . . . 8 5 . . . Catastrophic 6 | . 2 . . . . . 3 1 . . . Database Lockouts . | . . . . . . . . . . . . Manual 14 | . 3 . 2 . 1 . 8 . . . . Terminals 32 | . 3 . 11 . . . 12 6 . . . Fabricators . | . . . . . . . . . . . . Repair Stations . | . . . . . . . . . . . . Recycling Units 3 | . 2 . . . . . . 1 . . . Scanalyzers 2 | . . . . . . . . 2 . . . Garrison Access . | . . . . . . . . . . . . Terminal Hacks 38 | . 1 . 2 . 1 . 2 2 . . 30 Record 12 | . . . . . 1 . . . . . 11 Part Schematic 11 | . . . . . . . . . . . 11 Robot Schematic 5 | . . . . . . . . . . . 5 Prototype ID Bank 5 | . 1 . 1 . . . . . . . 3 Level Access Points 1 | . . . . . . . . 1 . . . Branch Access Points 2 | . . . . . . . 1 1 . . . Alert Level 1 | . . . . . . . 1 . . . . Unreport Threat 1 | . . . 1 . . . . . . . . Fabricator Hacks . | . . . . . . . . . . . . Repair Station Hacks . | . . . . . . . . . . . . Recycling Unit Hacks 1 | . 1 . . . . . . . . . . Report Inventory 1 | . 1 . . . . . . . . . . Scanalyzer 2 | . . . . . . . . 2 . . . Insert Component 1 | . . . . . . . . 1 . . . Analyze 1 | . . . . . . . . 1 . . . Garrison Access Hacks . | . . . . . . . . . . . . Unauthorized Hacks 2 | . . . . . . . 2 . . . . Terminals 2 | . . . . . . . 2 . . . . Track 1 | . . . . . . . 1 . . . . Operators 1 | . . . . . . . 1 . . . . Fabricators . | . . . . . . . . . . . . Repair Stations . | . . . . . . . . . . . . Recycling Units . | . . . . . . . . . . . . Scanalyzers . | . . . . . . . . . . . . Garrison Access . | . . . . . . . . . . . . Data Cores Recovered 1 | . . . 1 . . . . . . . . Used . | . . . . . . . . . . . . Hacking Detections 15 | . 2 . 4 . . . 5 4 . . . Full Trace Events 1 | . . . 1 . . . . . . . . Feedback Events . | . . . . . . . . . . . . Feedback Blocked . | . . . . . . . . . . . . Robot Schematics Acquired 5 | . . . . . . . . . . . 5 Robots Built . | . . . . . . . . . . . . Authchips . | . . . . . . . . . . . . Time . | . . . . . . . . . . . . Total Robot Build Rating . | . . . . . . . . . . . . Part Schematics Acquired 12 | . . . . . . . . 1 . . 11 Parts Built . | . . . . . . . . . . . . Authchips . | . . . . . . . . . . . . Time . | . . . . . . . . . . . . Total Part Build Rating . | . . . . . . . . . . . . Parts Repaired . | . . . . . . . . . . . . Time . | . . . . . . . . . . . . Parts Recycled . | . . . . . . . . . . . . Recycled Matter . | . . . . . . . . . . . . Retrieved Matter . | . . . . . . . . . . . . Retrieved Components . | . . . . . . . . . . . . Parts Scanalyzed 1 | . . . . . . . . 1 . . . Part Schematics Acquired 1 | . . . . . . . . 1 . . . Parts Damaged . | . . . . . . . . . . . . Bothacking | -11 -10 -10 -9 -9 -9 -8 -8 -7 -7 -7 -7 ------------ Run | Jun Mat Min Mat Min Exi Min Mat Fac Low Low Dat Used RIF Installer . | . . . . . . . . . . . . Robots Hacked . | . . . . . . . . . . . . Non-combat . | . . . . . . . . . . . . Combat . | . . . . . . . . . . . . Robot Hacks Applied . | . . . . . . . . . . . . Relay Couplers Released . | . . . . . . . . . . . . Fabnet Peak Effective % . | . . . . . . . . . . . . Robots Rewired . | . . . . . . . . . . . . Allies Hacked . | . . . . . . . . . . . . Hacks Repelled . | . . . . . . . . . . . . Allies | -11 -10 -10 -9 -9 -9 -8 -8 -7 -7 -7 -7 -------- Run | Jun Mat Min Mat Min Exi Min Mat Fac Low Low Dat Total Allies 4 | . . 3 . 1 . . . . . . . Largest Group 3 | . . 3 3 1 . . . . . . . Highest-Rated Group 40 | . . 40 40 31 . . . . . . . Highest-Rated Ally 31 | . . 16 16 31 . . . . . . . Total Orders . | . . . . . . . . . . . . Ally Attacks 50 | . . . 30 20 . . . . . . . Total Damage 505 | . . . 247 258 . . . . . . . Kills 12 | . . . 8 4 . . . . . . . Allies Corrupted . | . . . . . . . . . . . . Allies Melted . | . . . . . . . . . . . . Intel | -11 -10 -10 -9 -9 -9 -8 -8 -7 -7 -7 -7 ------- Run | Jun Mat Min Mat Min Exi Min Mat Fac Low Low Dat Robot Analysis Total . | . . . . . . . . . . . . Derelict Logs Recovered 6 | . . 2 . 1 . . . . 1 2 . Drone Launches . | . . . . . . . . . . . . Drone Recoveries . | . . . . . . . . . . . . Exploration | -11 -10 -10 -9 -9 -9 -8 -8 -7 -7 -7 -7 ------------- Run | Jun Mat Min Mat Min Exi Min Mat Fac Low Low Dat Turns Passed 9136 | 66 588 907 510 896 545 697 2067 1753 492 509 106 Spaces Moved 5443 | 25 375 606 262 446 285 342 1136 1152 343 404 67 Core 133 | . . . 108 25 . . . . . . . Treads 37 | . . . 37 . . . . . . . . Legs 5232 | 25 375 606 76 421 285 342 1136 1152 343 404 67 Wheels 41 | . . . 41 . . . . . . . . Hover . | . . . . . . . . . . . . Flight . | . . . . . . . . . . . . Fastest Speed 50 | 120 120 120 50 50 190 190 120 112 112 112 112 Average Speed 128 | 120 120 120 97 143 190 190 125 117 116 112 119 Slowest Speed 270 | 120 190 190 200 190 190 190 190 120 186 112 270 Overloaded Moves . | . . . . . . . . . . . . Propulsion Burnouts . | . . . . . . . . . . . . Robots Hopped . | . . . . . . . . . . . . Cave-ins Triggered 2 | . . . . . . . . . . . 2 Exploration Rate (%) 56 | 3 71 97 38 66 68 58 74 19 48 63 71 Regions Visited 11 Branch Regions 7 Pre-discovered Areas 2 | . . . . 1 . . . . . . 1 Known Exits Taken 5 | . . 1 1 . . . . 1 1 1 . Unknown Exits Taken 6 | 1 1 . . 1 1 1 1 . . . . Scrap Searched 8 | . . 1 . 2 . 1 . . 1 3 . Spaces Dug 85 | . . . 1 . . . 32 39 9 . 4 Terrain Destroyed 245 | . . 44 9 34 . . 70 41 26 . 21 Melee 85 | . . . 1 . . . 32 39 9 . 4 Projectile 2 | . . . . . . . 2 . . . . AOE 158 | . . 44 8 34 . . 36 2 17 . 17 Terrain Rammed . | . . . . . . . . . . . . Walls Destroyed . | . . . . . . . . . . . . Machines Disabled . | . . . . . . . . . . . . Actions | -11 -10 -10 -9 -9 -9 -8 -8 -7 -7 -7 -7 --------- Run | Jun Mat Min Mat Min Exi Min Mat Fac Low Low Dat Total 6999 | 39 469 723 410 678 289 374 1605 1469 412 450 81 Wait 889 | 2 47 63 57 183 . 15 238 203 47 34 . Move 5432 | 24 374 605 261 445 284 341 1135 1151 342 403 67 Hop . | . . . . . . . . . . . . Pick Up 74 | 1 7 1 7 14 2 3 20 14 . 5 . Fast Attach 26 | . 1 4 2 4 . . 13 2 . . . Attach 31 | 1 2 . 4 5 . 2 8 4 3 1 1 Detach . | . . . . . . . . . . . . Swap 99 | . 6 10 10 7 1 2 40 14 4 1 4 Drop 86 | . 9 8 9 2 2 2 35 18 . 1 . Fire 221 | 11 21 32 30 18 . 8 68 19 5 5 4 Melee 138 | . 2 . 30 . . . 47 44 10 . 5 Ram . | . . . . . . . . . . . . Kick 2 | . . . . . . 1 1 . . . . Crush . | . . . . . . . . . . . . Escape Stasis . | . . . . . . . . . . . . Rewire 1 | . . . . . . . . . 1 . . Trap . | . . . . . . . . . . . . Miscellaneous . | . . . . . . . . . . . . Route ------- -11/Junkyard -10/Materials (discovered 5 exits: *Mat x3 / [*Min x2]) -10/Mines (discovered 2 exits: *Mat x2) -9/Materials -9/Mines (discovered 3 exits: *Mat x2 / *Exi) -9/Exiles (discovered 2 exits: [*Min x2]) -8/Mines -8/Materials (discovered 3 exits: *Fac x3) -7/Factory (discovered 6 exits: Fac x4 / *Low x2) -7/Lower Caves -7/Lower Caves (discovered 2 exits: *Fac / *Dat) -7/Data Miner (discovered 1 exit: [*Pro]) History --------- Turn | Location | Event 1 | -11/Junkyard | Discovered new exit (range 2) 67 | -11/Junkyard | Entered Materials 78 | -10/Materials | Discovered new exit (range 11) 228 | -10/Materials | Discovered new exit (range 12) 282 | -10/Materials | Discovered new exit (range 7) 301 | -10/Materials | Build established: Mutant 353 | -10/Materials | Discovered new exit (range 8) 431 | -10/Materials | Discovered new exit (range 16) 655 | -10/Materials | Entered Mines 815 | -10/Mines | Core integrity fell below 50% 989 | -10/Mines | Discovered new exit (range 9) 1072 | -10/Mines | Learned 4 Materials zone layouts 1113 | -10/Mines | Assisted by bots powering up and referring to "LRC-V3" 1118 | -10/Mines | Identified exit to Materials 1123 | -10/Mines | Build established: Scavenger-Mutant 1562 | -10/Mines | Entered Materials 1562 | -9/Materials | Accompanied by 3 allies 1562 | -9/Materials | Evolved 2 slots: Propulsion x1, Utility x1 1563 | -9/Materials | Identified exit to Mines 1869 | -9/Materials | Lost 4 parts (1p2n1u) 1987 | -9/Materials | System corruption reached 10% 2047 | -9/Materials | Lost 4 parts (2n2u) 2072 | -9/Materials | Entered Mines 2073 | -9/Mines | Learned location of Storage (-9) 2075 | -9/Mines | Met a Derelict testing a Signal Generator 2080 | -9/Mines | Received a Rocket Launcher from a helpful Derelict 2108 | -9/Mines | Met a Derelict bent on vengeance 2225 | -9/Mines | Found a hidden stash of uninstalled traps 2303 | -9/Mines | Discovered new exit (range 4) 2447 | -9/Mines | Discovered new exit (range 8) 2508 | -9/Mines | Excavation squad dispatched 2508 | -9/Mines | A large section of the Mines collapsed 2765 | -9/Mines | Learned Materials security intel 2778 | -9/Mines | Build established: Mutant 2960 | -9/Mines | Deemed a non-threat by the Exiles lab entrance 2960 | -9/Mines | Discovered new exit (range 5) 2968 | -9/Mines | Entered Exiles 2993 | -9/Exiles | Discovered new exit (range 15) 3016 | -9/Exiles | Met 8R-AWN 3046 | -9/Exiles | Met EX-HEX 3111 | -9/Exiles | Met EX-BIN 3138 | -9/Exiles | Aligned with FarCom system 3139 | -9/Exiles | Given EX-Vault access code 3195 | -9/Exiles | Opened EX-Vault 3205 | -9/Exiles | Found Prototype Slashing Weapon 3230 | -9/Exiles | Identified Longsword +1 3296 | -9/Exiles | Warned to stay clear of 0b10 Research branches 3351 | -9/Exiles | Met EX-DEC 3495 | -9/Exiles | Discovered new exit (range 11) 3513 | -9/Exiles | Left Exiles lab with Longsword +1 3513 | -9/Exiles | Entered Mines 4176 | -8/Mines | Discovered new exit (range 15) 4210 | -8/Mines | Entered Materials 4210 | -8/Materials | Evolved 2 slots: Propulsion x1, Utility x1 4794 | -8/Materials | Garrison activated, responded to threat 4858 | -8/Materials | Lost 3 parts (1n2u) 4990 | -8/Materials | Discovered new exit (range 4) 5140 | -8/Materials | Discovered new exit (range 10) 5151 | -8/Materials | Build established: Scavenger-Mutant 5902 | -8/Materials | Core integrity fell below 50% 5921 | -8/Materials | Lost 3 parts (3n) 5963 | -8/Materials | Discovered new exit (range 12) 6277 | -8/Materials | Entered Factory 6277 | -7/Factory | Evolved 2 slots: Utility x2 6357 | -7/Factory | Identified exit to Lower Caves 6521 | -7/Factory | Identified exit to Factory 6607 | -7/Factory | Garrison activated, responded to threat 6976 | -7/Factory | Garrison activated, responded to threat 7306 | -7/Factory | Build established: Scavenger-Assassin 8030 | -7/Factory | Entered Lower Caves 8145 | -7/Lower Caves | Learned Factory interactive machine intel 8230 | -7/Lower Caves | Encountered a Warlord checkpoint 8340 | -7/Lower Caves | Build established: Scavenger-Mutant 8484 | -7/Lower Caves | Discovered new exit (range 15) 8511 | -7/Lower Caves | Identified exit to Lower Caves 8522 | -7/Lower Caves | Entered another Lower Caves area 8622 | -7/Lower Caves | Discovered exit to Factory (range 6) 8812 | -7/Lower Caves | Learned Factory security intel 9007 | -7/Lower Caves | Discovered new exit (range 9) 9027 | -7/Lower Caves | Identified exit to Data Miner 9031 | -7/Lower Caves | Entered Data Miner 9031 | -7/Data Miner | Discovered new exit (range 6) 9035 | -7/Data Miner | Build established: Mutant 9053 | -7/Data Miner | Met Data Miner 9077 | -7/Data Miner | Learned location of Section 7 (-2) 9077 | -7/Data Miner | Acquired the access code to Warlord's prototype stash 9095 | -7/Data Miner | Received God Mode back door access code from Data Miner 9102 | -7/Data Miner | Data Conduit disabled 9127 | -7/Data Miner | Crushed by falling debris 9130 | -7/Data Miner | Crushed by falling debris 9130 | -7/Data Miner | Core integrity fell below 50% 9133 | -7/Data Miner | Core integrity fell below 20% 9137 | -7/Data Miner | Destroyed by Enhanced Grunt with Neutron Cannon Last Messages --------------- 09101_ ORACLE Interface goes dark. 09101_ Data Miner disappears through a trap door. 09102_ Data Conduit disabled. 09104_ Imp. Aluminum Leg destroyed. 09118_ System corrupted: Energy discharge (-97). 09122_ Aluminum Leg destroyed. 09125_ Imp. Terrain Scanner destroyed. 09125_ Imp. Heat Sink destroyed. 09125_ Arm. Wheel destroyed. 09127_ The unstable cave ceiling collapses. 09127_ Crushed by falling debris. 09130_ The unstable cave ceiling collapses. 09130_ Crushed by falling debris. 09130_ Targeting Computer destroyed. 09130_ System corrupted by crushing effect (+1). 09130_ Chain reaction triggered in Antimatter Reactor. 09131_ Rocket Launcher destroyed. 09134_ The unstable cave ceiling collapses. 09136_ VSS Leg destroyed. 09136_ Deuterium Engine destroyed. Map ----- +----------------------------------------------------+ | | | | | | | | | | | | | | | | | | | | | ???????#??????#?#?#??##??##????#?#??####??#?#? | | ???????????##?#?????###?#?#???#??????#??#????? | | ??????????#?#??#?##?##??#???#?#????##????????? | | ???????????????##?#?????#??###??#???????????#? | | ???????#??#??###??##??####?#??#?#?#######??#?? | | ??????#???#############???##?####??### ##??#? | | ???????"?"""""""""""###### # # #?### #??#?? | | ????????""""" """"""""; # # # ## < ##????? | | ???????"""" " ###### | | ???????""" # | | ??????"""" # | | ??????""" # | | ?????""""" ## | | ??????"""" """""""""""""###### | | ??????""""" g ##############????? | | ????????""" @ #?#?#?##????##???## | | ????#?"?""""" ggg #####?#??#?##??????? | | ???#??######"## ####?#?#????????????? | | ???#??##?#?#"?## # #########?????#?????? | | ???#??????##"### "## ######?##?#???#?###??? | | ?????##?#?#?"?# "########??##?#????#???#?#? | | ??????#?????"## "##?###??#??#####?#??##???? | | ?###""""????"# "####?#?###?##?###??#?????? | | ??????"??"???### "############?#??#????????? | | ?????"?""?#?"??# "###?#?#?#??##?#?#??????#?? | | ?????"??""#???## ""#####?######????????????? | | ???#?"???"???## ""####???####?????????????? | | ?????????"##"#"X ""###??????###????????????? | | ???#??????""""" "####????#???????????????? | | ??????????""""" X"""""##?????#????????????? | | ????????#?##"#"X "##"####??#??????????????? | | ?#???#??##?#"## X""""#????????????????????? | | ??????????????## "##"##???????????????????? | | ???????#??????########??#????#???????????????? | | ????????????"#?????###?"??#???#?#????????????? | | ??????#?#?????#???#??????????#???????????????? | | ??????????????"????????"???#?#?#?????????????? | | ??????????????#???????????#??#???????????????? | | ?????????????????"??#??#?#??#????????????????? | | ??????????#?#??#?????#???????????????????????? | +----------------------------------------------------+ Best States ------------- Heat Dissipation 67 Energy Generation 14 Energy Capacity 280 Matter Stores 300 Matter Capacity 300 Sight Range 16 Terrain Scan Range 16 Terrain Scan Density 110 Armor Coverage 225 Resistance: KI 20 Evasion (%) 55 Targeting Accuracy 5 Recoil Reduction 2 Offensive Hacking 10 Item Schematics ----------------- Plasma Cannon | -7/Factory | Scanalyzed Combat Drone Bay | -7/Data Miner | Free Lgt. Regenerative Plating | -7/Data Miner | Free Biomechanical Wings | -7/Data Miner | Free Exp. Utility Shielding | -7/Data Miner | Free Imp. Heavy Laser | -7/Data Miner | Free Nuclear Pulse Array | -7/Data Miner | Free Adv. Cooling System | -7/Data Miner | Free Tesla Rifle | -7/Data Miner | Free Imp. Trap Scanner | -7/Data Miner | Free Adv. Shield Generator | -7/Data Miner | Free Field Propulsion Array | -7/Data Miner | Free Robot Schematics ------------------ R-10 Processor | -7/Data Miner | Free H-55 Commando | -7/Data Miner | Free S-27 Virus | -7/Data Miner | Free M-14 Sweeper | -7/Data Miner | Free P-60 Hacker | -7/Data Miner | Free Fabricated ------------ Nothing Alien Tech Used ----------------- None Achievements -------------- None Challenges ------------ None Game ------ Seed StormCorruptionRouter Manual? 0 Play Time 01:38:18 Cumulative 126.5 hours Start 2023.07.27 @ 23:19:57 End 2023.07.28 @ 22:13:03 Sessions 5 Manual Loads 0 Difficulty Rogue Special Mode None Game No. 204 Rogue 204 Adventurer 0 Explorer 0 Win Type - Total 0 Types 0/0/0/0/0/0/0/0/0 Lore% 56 Gallery% 60 Achievement% 46 Wizard Run 0 Options --------- ASCII 0 Keyboard 1 Movement Numpad Keybinds 0 Fullscreen 1 Font 18/SmallcapsGlow Map View 76x50 Tactical HUD 1 Map Filters NONE Filters NONE Steam 1 RUN: 0d4c1ab6-7ff2-4b76-a7f6-6a64a5af2a87